fUST/lending_fUST_20250212
["ID","MTS","AMOUNT","RATE_DAILY","PERIOD"]
[352811621,1739339445330,-500.0,0.00013787,2]
[352811622,1739339445342,-500.0,0.00013847,2]
[352811623,1739339445352,-514.228614,0.00013847,2]
[352811624,1739339445362,-378.53207376,0.00013847,2]
[352811625,1739339445375,-500.0,0.00013922,2]
[352811626,1739339445395,-1812.92,0.00013922,2]
[352811627,1739339445409,-1229.19,0.00013922,2]
[352811628,1739339445419,-500.0,0.00013922,2]
[352811629,1739339445428,-1147.66,0.00013922,2]
[352811630,1739339445438,-500.0,0.00013922,2]
[352811631,1739339445447,-500.0,0.00013922,2]
[352811632,1739339445458,-500.84,0.00013922,2]
[352811633,1739339445467,-500.0,0.00013922,2]
[352811634,1739339445477,-737.01,0.00013922,2]
[352811635,1739339445487,-782.49,0.00013922,2]
[352811636,1739339445496,-500.0,0.00013922,2]
[352811637,1739339445506,-500.0,0.00013922,2]
[352811638,1739339445515,-825.38,0.00013922,2]
[352811639,1739339445525,-537.46,0.00013922,2]
[352811640,1739339445535,-500.0,0.00013922,2]
[352811641,1739339445545,-500.0,0.00013922,2]
[352811642,1739339445554,-500.0,0.00013922,2]
[352811643,1739339445564,-500.0,0.00013922,2]
[352811644,1739339445573,-500.0,0.00013922,2]
[352811645,1739339445583,-948.02,0.00013922,2]
[352811646,1739339445592,-500.0,0.00013923,2]
[352811647,1739339445602,-500.0,0.00013923,2]
[352811648,1739339445612,-500.0,0.00013923,2]
[352811649,1739339445622,-500.0,0.00013923,2]
[352811650,1739339445631,-500.0,0.00013923,2]
[352811651,1739339445640,-398.23614346,0.00013923,2]
[352811652,1739339445649,-500.0,0.00013923,2]
[352811653,1739339445660,-500.0,0.00013923,2]
[352811654,1739339445669,-158.093449,0.00013923,2]
[352811655,1739339445678,-500.0,0.00013923,2]
[352811656,1739339445688,-1178.96,0.00013923,2]
[352811657,1739339445697,-216.067364,0.00013923,2]
[352811658,1739339445707,-5004.24,0.00013923,2]
[352811659,1739339445716,-271.3095,0.00013923,2]
[352811660,1739339445726,-271.3095,0.00013923,2]
[352811661,1739339445736,-500.0,0.00013923,2]
[352811662,1739339445745,-627.87,0.00013923,2]
[352811663,1739339445754,-11163.09,0.00013923,2]
[352811664,1739339445765,-500.0,0.00013923,2]
[352811665,1739339445774,-500.0,0.00013923,2]
[352811666,1739339445784,-151.0,0.00013923,2]
[352811667,1739339445793,-500.0,0.00013923,2]
[352811668,1739339445803,-151.0,0.00013923,2]
[352811669,1739339445813,-500.0,0.00013923,2]
[352811670,1739339445823,-500.0,0.00013923,2]
[352811671,1739339445832,-500.0,0.00013923,2]
[352811672,1739339445842,-151.0,0.00013923,2]
[352811673,1739339445852,-151.0,0.00013923,2]
[352811674,1739339445861,-151.0,0.00013923,2]
[352811675,1739339445871,-151.0,0.00013923,2]
[352811676,1739339445880,-151.0,0.00013923,2]
[352811677,1739339445890,-151.0,0.00013923,2]
[352811678,1739339445899,-4232.48,0.00013923,2]
[352811679,1739339445908,-151.142476,0.00013923,2]
[352811681,1739339445919,-500.0,0.00013923,2]
[352811683,1739339445929,-500.0,0.00013923,2]
[352811684,1739339445939,-151.0,0.00013923,2]
[352811685,1739339445948,-151.862795,0.00013923,2]
[352811686,1739339445958,-500.0,0.00013923,2]
[352811687,1739339445967,-151.0,0.00013923,2]
[352811688,1739339445976,-151.0,0.00013923,2]
[352811689,1739339445986,-151.0,0.00013923,2]
[352811690,1739339445996,-248.11930689,0.00013924,2]
[352811691,1739339446005,-500.0,0.00013924,2]
[352811692,1739339446015,-500.0,0.00013924,2]
[352811693,1739339446024,-500.0,0.00013924,2]
[352811694,1739339446033,-607.150844,0.00013924,2]
[352811695,1739339446043,-502.53382021,0.00013924,2]
[352811696,1739339446052,-500.0,0.00013924,2]
[352811697,1739339446062,-1000.0,0.00013924,2]
[352811698,1739339446071,-500.0,0.00013924,2]
[352811699,1739339446080,-500.0,0.00013924,2]
[352811700,1739339446090,-500.0,0.00013924,2]
[352811701,1739339446099,-500.0,0.00013924,2]
[352811702,1739339446108,-500.0,0.00013924,2]
[352811703,1739339446117,-168.87115618,0.00013926,2]
[352811704,1739339446126,-390.241,0.00013935,2]
[352811705,1739339446136,-152.03741708,0.00013979,2]
[352811706,1739339446146,-500.0,0.00013999,7]
[352811707,1739339446156,-500.0,0.00013999,7]
[352811708,1739339446166,-500.0,0.00013999,7]
[352811709,1739339446176,-500.0,0.00013999,7]
[352811710,1739339446185,-500.0,0.00013999,7]
[352811711,1739339446194,-500.0,0.00013999,7]
[352811712,1739339446204,-500.0,0.00013999,7]
[352811713,1739339446213,-500.0,0.00013999,7]
[352811714,1739339446223,-500.0,0.00013999,7]
[352811715,1739339446232,-500.0,0.00013999,7]
[352811716,1739339446242,-500.0,0.00013999,7]
[352811718,1739339446251,-500.0,0.00013999,7]
[352811720,1739339446261,-500.0,0.00013999,7]
[352811721,1739339446270,-603.13,0.00013999,7]
[352811722,1739339446279,-500.0,0.00013999,7]
[352811723,1739339446289,-500.0,0.00013999,7]
[352811724,1739339446298,-500.0,0.00013999,7]
[352811725,1739339446307,-500.0,0.00013999,7]
[352811726,1739339446317,-500.0,0.00013999,7]
[352811727,1739339446326,-500.0,0.00013999,7]
[352811728,1739339446335,-500.0,0.00013999,7]
[352811729,1739339446345,-500.0,0.00013999,7]
[352811730,1739339446354,-500.0,0.00013999,7]
[352811731,1739339446364,-500.0,0.00013999,7]
[352811732,1739339446373,-500.0,0.00013999,7]
[352811733,1739339446386,-500.0,0.00013999,7]
[352811734,1739339446395,-500.0,0.00013999,7]
[352811735,1739339446405,-500.0,0.00013999,7]
[352811736,1739339446415,-500.0,0.00013999,7]
[352811737,1739339446424,-500.0,0.00013999,7]
[352811738,1739339446434,-500.0,0.00013999,7]
[352811739,1739339446444,-500.0,0.00013999,7]
[352811740,1739339446458,-500.0,0.00013999,7]
[352811741,1739339446468,-500.0,0.00013999,7]
[352811742,1739339446477,-500.0,0.00013999,7]
[352811743,1739339446487,-500.0,0.00013999,7]
[352811744,1739339446497,-500.0,0.00013999,7]
[352811745,1739339446506,-500.0,0.00013999,7]
[352811746,1739339446515,-500.0,0.00013999,7]
[352811747,1739339446525,-500.0,0.00013999,7]
[352811748,1739339446534,-500.0,0.00013999,7]
[352811749,1739339446544,-500.0,0.00013999,7]
[352811750,1739339446553,-500.0,0.00013999,7]
[352811751,1739339446563,-500.0,0.00013999,7]
[352811752,1739339446572,-500.0,0.00013999,7]
[352811753,1739339446582,-500.0,0.00013999,7]
[352811754,1739339446592,-500.0,0.00013999,7]
[352811755,1739339446601,-500.0,0.00013999,7]
[352811756,1739339446612,-500.0,0.00013999,7]
[352811757,1739339446621,-500.0,0.00013999,7]
[352811758,1739339446631,-500.0,0.00013999,7]
[352811759,1739339446641,-500.0,0.00013999,7]
[352811760,1739339446650,-500.0,0.00013999,7]
[352811761,1739339446660,-500.0,0.00013999,7]
[352811762,1739339446669,-500.0,0.00013999,7]
[352811763,1739339446679,-500.0,0.00013999,7]
[352811764,1739339446689,-152.024997,0.00013999,2]
[352811765,1739339446809,-157.972972,0.00013999,2]
[352811766,1739339446820,-157.972972,0.00013999,2]
[352811767,1739339446829,-306.4532908,0.00014,2]
[352811768,1739339446839,-155.8142976,0.00014,2]
[352811769,1739339446850,-313.3501289,0.00014,2]
[352811770,1739339446859,-428.138784,0.00014,2]
[352811771,1739339446869,-500.0,0.00014059,2]
[352811772,1739339446878,-1812.92,0.00014059,2]
[352811773,1739339446888,-1229.19,0.00014059,2]
[352811774,1739339446898,-500.0,0.00014059,2]
[352811775,1739339446910,-1147.66,0.00014059,2]
[352811776,1739339446920,-500.0,0.00014059,2]
[352811777,1739339446929,-500.0,0.00014059,2]
[352811778,1739339446939,-500.84,0.00014059,2]
[352811779,1739339446948,-500.0,0.00014059,2]
[352811780,1739339446957,-737.01,0.00014059,2]
[352811781,1739339446966,-782.49,0.00014059,2]
[352811782,1739339446976,-500.0,0.00014059,2]
[352811783,1739339446985,-500.0,0.00014059,2]
[352811784,1739339446995,-825.38,0.00014059,2]
[352811785,1739339447004,-537.46,0.00014059,2]
[352811786,1739339447013,-500.0,0.00014059,2]
[352811787,1739339447023,-500.0,0.00014059,2]
[352811788,1739339447034,-500.0,0.00014059,2]
[352811789,1739339447044,-500.0,0.00014059,2]
[352811790,1739339447055,-500.0,0.00014059,2]
[352811791,1739339447064,-948.02,0.00014059,2]
[352811792,1739339447074,-500.0,0.0001406,2]
[352811793,1739339447083,-500.0,0.0001406,2]
[352811794,1739339447092,-500.0,0.0001406,2]
[352811795,1739339447102,-500.0,0.0001406,2]
[352811796,1739339447112,-500.0,0.0001406,2]
[352811797,1739339447121,-500.0,0.0001406,2]
[352811798,1739339447130,-500.0,0.0001406,2]
[352811799,1739339447140,-1178.96,0.0001406,2]
[352811800,1739339447150,-5004.24,0.0001406,2]
[352811801,1739339447159,-500.0,0.0001406,2]
[352811802,1739339447170,-627.87,0.0001406,2]
[352811803,1739339447182,-11163.09,0.0001406,2]
[352811804,1739339447192,-500.0,0.0001406,2]
[352811805,1739339447201,-500.0,0.0001406,2]
[352811806,1739339447214,-500.0,0.0001406,2]
[352811807,1739339447224,-500.0,0.0001406,2]
[352811808,1739339447236,-500.0,0.0001406,2]
[352811809,1739339447245,-500.0,0.0001406,2]
[352811810,1739339447254,-4232.48,0.0001406,2]
[352811811,1739339447263,-500.0,0.0001406,2]
[352811812,1739339447273,-500.0,0.0001406,2]
[352811813,1739339447282,-500.0,0.0001406,2]
[352811814,1739339447292,-500.0,0.00014061,2]
[352811815,1739339447302,-500.0,0.00014061,2]
[352811816,1739339447312,-196.51823698,0.00014061,2]
[352811817,1739339447322,-500.0,0.00014061,2]
[352811818,1739339447332,-500.0,0.00014061,2]
[352811819,1739339447342,-168.87115618,0.00014097,2]
[352811820,1739339447351,-500.0,0.00014158,2]
[352811821,1739339447361,-1812.92,0.00014196,2]
[352811822,1739339447370,-1229.19,0.00014196,2]
[352811823,1739339447383,-500.0,0.00014196,2]
[352811824,1739339447393,-1147.66,0.00014196,2]
[352811825,1739339447403,-500.0,0.00014196,2]
[352811826,1739339447412,-225.90919238,0.00014196,2]
[352811827,1739339447422,-500.84,0.00014196,2]
[352811828,1739339447433,-500.0,0.00014196,2]
[352811829,1739339447442,-737.01,0.00014196,2]
[352811830,1739339447453,-782.49,0.00014196,2]
[352811831,1739339447465,-500.0,0.00014196,2]
[352811832,1739339447474,-500.0,0.00014196,2]
[352811833,1739339447484,-825.38,0.00014196,2]
[352811834,1739339447493,-537.46,0.00014196,2]
[352811835,1739339447502,-500.0,0.00014196,2]
[352811836,1739339447512,-500.0,0.00014196,2]
[352811837,1739339447522,-500.0,0.00014196,2]
[352811838,1739339447531,-500.0,0.00014196,2]
[352811839,1739339447540,-500.0,0.00014196,2]
[352811840,1739339447551,-948.02,0.00014196,2]
[352811841,1739339447560,-230.42079951,0.00014196,2]
[352811842,1739339447569,-500.0,0.00014197,2]
[352811843,1739339447579,-490.61,0.00014197,2]
[352811844,1739339447588,-500.0,0.00014197,2]
[352811845,1739339447598,-500.0,0.00014197,2]
[352811846,1739339447608,-500.0,0.00014197,2]
[352811847,1739339447617,-500.0,0.00014197,2]
[352811848,1739339447626,-500.0,0.00014197,2]
[352811849,1739339447637,-1178.96,0.00014197,2]
[352811850,1739339447646,-5004.24,0.00014197,2]
[352811851,1739339447656,-271.3095,0.00014197,2]
[352811852,1739339447666,-271.3095,0.00014197,2]
[352811853,1739339447675,-500.0,0.00014197,2]
[352811854,1739339447685,-627.87,0.00014197,2]
[352811855,1739339447694,-11163.09,0.00014197,2]
[352811856,1739339447703,-500.0,0.00014197,2]
[352811857,1739339447715,-500.0,0.00014197,2]
[352811858,1739339447724,-206.263594,0.00014197,2]
[352811859,1739339447733,-500.0,0.00014197,2]
[352811860,1739339447743,-500.0,0.00014197,2]
[352811861,1739339447752,-500.0,0.00014197,2]
[352811862,1739339447762,-500.0,0.00014197,2]
[352811863,1739339447772,-151.0,0.00014197,2]
[352811864,1739339447782,-151.0,0.00014197,2]
[352811865,1739339447792,-151.0,0.00014197,2]
[352811866,1739339447802,-151.0,0.00014197,2]
[352811867,1739339447811,-151.0,0.00014197,2]
[352811868,1739339447821,-155.475813,0.00014197,2]
[352811869,1739339447831,-4232.48,0.00014197,2]
[352811870,1739339447840,-500.0,0.00014197,2]
[352811871,1739339447850,-638.67465305,0.00014197,2]
[352811872,1739339447860,-151.0,0.00014197,2]
[352811873,1739339447870,-500.0,0.00014197,2]
[352811874,1739339447879,-151.0,0.00014197,2]
[352811875,1739339447889,-151.0,0.00014197,2]
[352811876,1739339447898,-500.0,0.00014198,2]
[352811877,1739339447907,-397.32602959,0.00014198,2]
[352811878,1739339447917,-500.0,0.00014198,2]
[352811879,1739339447927,-500.0,0.00014198,2]
[352811880,1739339447936,-501.64315851,0.00014212,2]
[352811881,1739339447957,-500.0,0.00014217,2]
[352811882,1739339447969,-500.0,0.00014248,2]
[352811883,1739339447978,-500.0,0.00014326,2]
[352811884,1739339447988,-1812.92,0.00014333,2]
[352811885,1739339447998,-1229.19,0.00014333,2]
[352811886,1739339448008,-500.0,0.00014333,2]
[352811887,1739339448019,-1147.66,0.00014333,2]
[352811888,1739339448030,-500.0,0.00014333,2]
[352811889,1739339448040,-500.84,0.00014333,2]
[352811890,1739339448050,-500.0,0.00014333,2]
[352811891,1739339448060,-737.01,0.00014333,2]
[352811892,1739339448070,-782.49,0.00014333,2]
[352811893,1739339448082,-500.0,0.00014333,2]
[352811894,1739339448092,-500.0,0.00014333,2]
[352811895,1739339448102,-825.38,0.00014333,2]
[352811896,1739339448113,-537.46,0.00014333,2]
[352811897,1739339448123,-500.0,0.00014333,2]
[352811898,1739339448133,-500.0,0.00014333,2]
[352811899,1739339448143,-500.0,0.00014333,2]
[352811900,1739339448153,-500.0,0.00014333,2]
[352811901,1739339448164,-500.0,0.00014333,2]
[352811902,1739339448176,-948.02,0.00014333,2]
[352811903,1739339448187,-500.0,0.00014334,2]
[352811904,1739339448197,-151.0,0.00014334,2]
[352811905,1739339448210,-151.0,0.00014334,2]
[352811906,1739339448223,-500.0,0.00014334,2]
[352811907,1739339448236,-500.0,0.00014334,2]
[352811908,1739339448247,-157.972972,0.00014334,2]
[352811909,1739339448258,-157.972972,0.00014334,2]
[352811910,1739339448268,-500.0,0.00014334,2]
[352811911,1739339448279,-500.0,0.00014334,2]
[352811912,1739339448289,-500.0,0.00014334,2]
[352811913,1739339448300,-1178.96,0.00014334,2]
[352811914,1739339448310,-5004.24,0.00014334,2]
[352811915,1739339448321,-500.0,0.00014334,2]
[352811916,1739339448331,-627.87,0.00014334,2]
[352811917,1739339448343,-11163.09,0.00014334,2]
[352811918,1739339448354,-500.0,0.00014334,2]
[352811919,1739339448365,-500.0,0.00014334,2]
[352811920,1739339448376,-500.0,0.00014334,2]
[352811921,1739339448392,-500.0,0.00014334,2]
[352811922,1739339448402,-387.91857799,0.00014334,2]
[352811923,1739339448412,-4232.48,0.00014334,2]
[352811924,1739339448422,-500.0,0.00014334,2]
[352811925,1739339448433,-500.0,0.00014334,2]
[352811926,1739339448443,-500.0,0.00014335,2]
[352811927,1739339448455,-500.0,0.00014335,2]
[352811928,1739339448468,-1812.92,0.0001447,2]
[352811929,1739339448479,-1229.19,0.0001447,2]
[352811930,1739339448489,-500.0,0.0001447,2]
[352811931,1739339448499,-1147.66,0.0001447,2]
[352811932,1739339448511,-500.0,0.0001447,2]
[352811933,1739339448521,-500.84,0.0001447,2]
[352811934,1739339448532,-500.0,0.0001447,2]
[352811935,1739339448542,-737.01,0.0001447,2]
[352811936,1739339448552,-782.49,0.0001447,2]
[352811937,1739339448562,-500.0,0.0001447,2]
[352811938,1739339448572,-500.0,0.0001447,2]
[352811939,1739339448583,-825.38,0.0001447,2]
[352811940,1739339448594,-537.46,0.0001447,2]
[352811941,1739339448604,-500.0,0.0001447,2]
[352811942,1739339448616,-500.0,0.0001447,2]
[352811943,1739339448627,-500.0,0.0001447,2]
[352811944,1739339448638,-500.0,0.0001447,2]
[352811945,1739339448650,-500.0,0.0001447,2]
[352811946,1739339448661,-948.02,0.0001447,2]
[352811947,1739339448671,-500.0,0.00014471,2]
[352811948,1739339448681,-151.0,0.00014471,2]
[352811949,1739339448692,-151.0,0.00014471,2]
[352811950,1739339448701,-500.0,0.00014471,2]
[352811951,1739339448712,-503.27807468,0.00014471,2]
[352811952,1739339448724,-500.0,0.00014471,2]
[352811953,1739339448735,-500.0,0.00014471,2]
[352811954,1739339448746,-500.0,0.00014471,2]
[352811955,1739339448757,-1178.96,0.00014471,2]
[352811956,1739339448767,-5004.24,0.00014471,2]
[352811957,1739339448778,-271.3095,0.00014471,2]
[352811958,1739339448794,-271.3095,0.00014471,2]
[352811959,1739339448805,-209.89260366,0.00014471,2]
[352811960,1739339448815,-627.87,0.00014471,2]
[352811961,1739339448825,-11163.09,0.00014471,2]
[352811962,1739339448836,-500.0,0.00014471,2]
[352811963,1739339448847,-500.0,0.00014471,2]
[352811964,1739339448857,-500.0,0.00014471,2]
[352811965,1739339448868,-500.0,0.00014471,2]
[352811966,1739339448879,-152.390034,0.00014471,2]
[352811967,1739339449065,-2944.11588148,0.00014471,2]
[352811968,1739339449190,-1288.36411852,0.00014471,2]
[352811969,1739339449201,-500.0,0.00014471,2]
[352811970,1739339449212,-151.0,0.00014471,2]
[352811971,1739339449224,-528.22492169,0.00014471,2]
[352811972,1739339449235,-500.0,0.00014472,2]
[352811973,1739339449247,-500.0,0.00014472,2]
[352811974,1739339449258,-151.0,0.00014553,2]
[352811975,1739339449270,-151.0,0.00014553,2]
[352811976,1739339449281,-151.0,0.00014553,2]
[352811977,1739339449291,-151.0,0.00014553,2]
[352811978,1739339449303,-151.0,0.000146,2]
[352811979,1739339449313,-1812.92,0.00014607,2]
[352811980,1739339449323,-1229.19,0.00014607,2]
[352811981,1739339449334,-500.0,0.00014607,2]
[352811982,1739339449344,-1147.66,0.00014607,2]
[352811983,1739339449355,-500.0,0.00014607,2]
[352811984,1739339449365,-500.84,0.00014607,2]
[352811985,1739339449376,-529.86715191,0.00014607,2]
[352811986,1739339449389,-737.01,0.00014607,2]
[352811987,1739339449399,-782.49,0.00014607,2]
[352811988,1739339449409,-500.0,0.00014607,2]
[352811989,1739339449419,-500.0,0.00014607,2]
[352811990,1739339449429,-825.38,0.00014607,2]
[352811991,1739339449439,-537.46,0.00014607,2]
[352811992,1739339449449,-500.0,0.00014607,2]
[352811993,1739339449462,-500.0,0.00014607,2]
[352811994,1739339449472,-500.0,0.00014607,2]
[352811995,1739339449482,-500.0,0.00014607,2]
[352811996,1739339449492,-500.0,0.00014607,2]
[352811997,1739339449502,-948.02,0.00014607,2]
[352811998,1739339449512,-629.07215599,0.00014608,2]
[352811999,1739339449522,-500.0,0.00014608,2]
[352812000,1739339449532,-500.0,0.00014608,2]
[352812001,1739339449542,-500.0,0.00014608,2]
[352812002,1739339449552,-158.04,0.00014608,2]
[352812003,1739339449562,-1178.96,0.00014608,2]
[352812004,1739339449572,-5004.24,0.00014608,2]
[352812005,1739339449582,-627.87,0.00014608,2]
[352812006,1739339449591,-11163.09,0.00014608,2]
[352812007,1739339449602,-500.0,0.00014608,2]
[352812008,1739339449612,-500.0,0.00014608,2]
[352812009,1739339449623,-500.0,0.00014608,2]
[352812010,1739339449632,-500.0,0.00014608,2]
[352812011,1739339449642,-4232.48,0.00014608,2]
[352812012,1739339449653,-496.59741636,0.00014608,2]
[352812013,1739339449865,-9869.22482394,0.00014577,2]
[352812014,1739339449876,-3.40258364,0.00014608,2]
[352812015,1739339449887,-500.0,0.00014609,2]
[352812016,1739339449897,-455.14524824,0.00014609,2]
[352812017,1739339449907,-263.91,0.00014699,2]
[352812018,1739339449917,-1970.0,0.00014699,2]
[352812019,1739339449927,-538.0,0.00014699,2]
[352812020,1739339449937,-2280.111,0.00014699,2]
[352812021,1739339449947,-151.0,0.00014699,2]
[352812022,1739339449959,-151.0,0.00014699,2]
[352812023,1739339449969,-157.972972,0.00014699,2]
[352812024,1739339449979,-157.972972,0.00014699,2]
[352812025,1739339449990,-151.0,0.000147,2]
[352812026,1739339450000,-1000.0,0.00014706,2]
[352812027,1739339450010,-1812.92,0.00014744,2]
[352812028,1739339450021,-1229.19,0.00014744,2]
[352812029,1739339450031,-500.0,0.00014744,2]
[352812030,1739339450041,-1147.66,0.00014744,2]
[352812031,1739339450051,-500.0,0.00014744,2]
[352812032,1739339450061,-500.84,0.00014744,2]
[352812033,1739339450070,-737.01,0.00014744,2]
[352812034,1739339450080,-782.49,0.00014744,2]
[352812035,1739339450090,-500.0,0.00014744,2]
[352812036,1739339450100,-500.0,0.00014744,2]
[352812037,1739339450109,-825.38,0.00014744,2]
[352812038,1739339450119,-537.46,0.00014744,2]
[352812039,1739339450129,-500.0,0.00014744,2]
[352812040,1739339450141,-500.0,0.00014744,2]
[352812041,1739339450150,-500.0,0.00014744,2]
[352812042,1739339450160,-500.0,0.00014744,2]
[352812043,1739339450170,-500.0,0.00014744,2]
[352812044,1739339450180,-948.02,0.00014744,2]
[352812045,1739339450189,-500.0,0.00014745,2]
[352812046,1739339450199,-500.0,0.00014745,2]
[352812047,1739339450209,-1178.96,0.00014745,2]
[352812048,1739339450219,-5004.24,0.00014745,2]
[352812049,1739339450230,-627.87,0.00014745,2]
[352812050,1739339450240,-11163.09,0.00014745,2]
[352812051,1739339450251,-500.0,0.00014745,2]
[352812052,1739339450260,-500.0,0.00014745,2]
[352812053,1739339450270,-500.0,0.00014745,2]
[352812054,1739339450292,-4232.48,0.00014745,2]
[352812055,1739339450302,-500.0,0.00014745,2]
[352812056,1739339450312,-503.89903043,0.00014746,2]
[352812057,1739339450322,-500.0,0.00014746,2]
[352812058,1739339450332,-575.42336901,0.00014765,2]
[352812059,1739339450343,-1000.0,0.00014796,2]
[352812060,1739339450353,-420.0,0.00014808,2]
[352812061,1739339450364,-206.2657544,0.00014849,2]
[352812062,1739339450376,-501.25242152,0.00014874,2]
[352812063,1739339450389,-1812.92,0.00014881,2]
[352812064,1739339450400,-1229.19,0.00014881,2]
[352812065,1739339450409,-500.0,0.00014881,2]
[352812066,1739339450420,-1147.66,0.00014881,2]
[352812067,1739339450432,-500.0,0.00014881,2]
[352812068,1739339450443,-500.84,0.00014881,2]
[352812069,1739339450453,-737.01,0.00014881,2]
[352812070,1739339450465,-782.49,0.00014881,2]
[352812071,1739339450475,-500.0,0.00014881,2]
[352812072,1739339450485,-500.0,0.00014881,2]
[352812073,1739339450495,-825.38,0.00014881,2]
[352812074,1739339450505,-537.46,0.00014881,2]
[352812075,1739339450516,-500.0,0.00014881,2]
[352812076,1739339450527,-500.0,0.00014881,2]
[352812077,1739339450536,-500.0,0.00014881,2]
[352812078,1739339450546,-154.02041928,0.00014881,2]
[352812079,1739339450556,-500.0,0.00014881,2]
[352812080,1739339450566,-948.02,0.00014881,2]
[352812081,1739339450576,-151.0,0.00014882,2]
[352812082,1739339450586,-151.0,0.00014882,2]
[352812083,1739339450596,-151.0,0.00014882,2]
[352812084,1739339450606,-500.0,0.00014882,2]
[352812085,1739339450615,-500.0,0.00014882,2]
[352812086,1739339450626,-1178.96,0.00014882,2]
[352812087,1739339450635,-5004.24,0.00014882,2]
[352812088,1739339450645,-271.3095,0.00014882,2]
[352812089,1739339450655,-271.3095,0.00014882,2]
[352812090,1739339450665,-627.87,0.00014882,2]
[352812091,1739339450675,-11163.09,0.00014882,2]
[352812092,1739339450687,-500.0,0.00014882,2]
[352812093,1739339450698,-500.0,0.00014882,2]
[352812094,1739339450709,-500.0,0.00014882,2]
[352812095,1739339450720,-151.0,0.00014882,2]
[352812096,1739339450730,-151.0,0.00014882,2]
[352812097,1739339450740,-151.0,0.00014882,2]
[352812098,1739339450750,-269.607859,0.00014882,2]
[352812099,1739339450760,-4232.48,0.00014882,2]
[352812100,1739339450770,-500.0,0.00014882,2]
[352812101,1739339450780,-155.260489,0.00014883,2]
[352812102,1739339450790,-500.0,0.00014883,2]
[352812103,1739339450799,-300.0,0.000149,5]
[352812104,1739339450809,-151.0,0.000149,2]
[352812105,1739339450820,-703.41632433,0.00014906,2]
[352812106,1739339450830,-151.0,0.00014998,2]
[352812107,1739339450840,-46919.46729426,0.00014999,2]
[352812108,1739339450854,-586.0,0.00014999,2]
[352812109,1739339450871,-396.0,0.00014699,2]
[352812110,1739339450881,-7.16668413,0.00014999,2]
[352812122,1739340359131,-500.0,0.0001308,2]
[352812123,1739340359152,-197.44345761,0.00013311,2]
[352812124,1739340359172,-238.02488985,0.00013311,2]
[352812125,1739340359192,-522.11447348,0.0001341,2]
[352812127,1739340427099,-450.0,0.0001308,2]
[352812128,1739340442148,-150.0,0.0001308,2]
[352812129,1739340442171,-182.57495212,0.00013411,2]
[352812130,1739340442195,-300.0,0.00013508,2]
[352812131,1739340442218,-156.22307069,0.00013509,2]
[352812132,1739340451097,-479.59636524,0.00013509,2]
[352812133,1739340451121,-500.0,0.00013509,2]
[352812134,1739340451143,-500.0,0.00013509,2]
[352812135,1739340451167,-500.0,0.00013509,2]
[352812136,1739340451188,-413.35186928,0.00013509,2]